Cogmind - Beta 14 @@@ ROGUE MODE // 2024.09.14 @ 22:33:10 Player: ZarZap Result: Self-destructed Performance ------------- Evolutions (1) 500 Regions Visited (3) 600 Robots Destroyed (7) 35 Value Destroyed (254) 254 Prototype IDs (1) 20 Alien Tech Used (0) 0 Bonus (200) 200 TOTAL SCORE: 1609 Bonus ------- Pacifist 200 Cogmind --------- Core Integrity 314/400 Matter 298/300 Energy 100/100 System Corruption 6% Temperature Cool (0) Movement Walking (260) Ox2 Location -9/Storage Parts ------- > --- POWER (1) -------- (None) > --- PROPULSION (4) --- Aluminum Leg > --- UTILITY (2) ------ Large Storage Unit > --- WEAPON (2) ------- Small Laser > --- INVENTORY (15) --- Salvage Targeting Computer ECM Suite Light Armor Plating Light Armor Plating EM Pulse Gun Peak State ------------ > --- POWER ------------ Ion Engine > --- PROPULSION ------- Aluminum Leg Aluminum Leg Aluminum Leg Aluminum Leg > --- UTILITY ---------- Large Storage Unit Seismic Detector > --- WEAPON ----------- Medium Laser Improved Medium Laser > --- INVENTORY -------- Light Ion Engine Aluminum Leg Salvage Targeting Computer Improved Targeting Computer ECM Suite Light Armor Plating Light Armor Plating EM Pulse Gun Small Laser [Rating: 12] Favorites ----------- Power Ion Engine Engine Ion Engine Propulsion Aluminum Leg Leg Aluminum Leg Utility Seismic Detector Device Seismic Detector Storage Small Storage Unit Processor Improved Targeting Computer Weapon Medium Laser Energy Gun Medium Laser Build | -11 -10 -9 -9 ------- Run | Yrd Mat Mat Sto Slots Evolved 2 | . . 2 . Power . | . . . . Propulsion 2 | . . 2 . Utility . | . . . . Weapon . | . . . . Parts Attached 16 | 6 1 3 6 Power 2 | 1 . . 1 Engine 2 | 1 . . 1 Core . | . . . . Reactor . | . . . . Propulsion 5 | 2 . 2 1 Treads . | . . . . Leg 5 | 2 . 2 1 Wheel . | . . . . Hover . | . . . . Flight . | . . . . Utility 4 | 1 1 1 1 Device 1 | . 1 . . Storage 2 | 1 . 1 . Processor 1 | . . . 1 Hackware . | . . . . Protection . | . . . . Artifact . | . . . . Weapon 5 | 2 . . 3 Energy Gun 5 | 2 . . 3 Energy Cannon . | . . . . Ballistic Gun . | . . . . Ballistic Cannon . | . . . . Launcher . | . . . . Special Weapon . | . . . . Impact Weapon . | . . . . Slashing Weapon . | . . . . Piercing Weapon . | . . . . Special Melee Weapon . | . . . . Unidentified Prototypes 1 | . . . 1 Parts Lost 9 | . . . 9 Power 2 | . . . 2 Propulsion 3 | . . . 3 Utility 2 | . . . 2 Weapon 2 | . . . 2 Highest Loss Streak 9 | . . . 9 To Critical Strikes . | . . . . Average Slot Usage (%) 93 | . 98 100 86 Engine 10 | . 14 11 7 Leg 34 | . 28 44 38 Device 10 | . 12 11 7 Storage 12 | . 14 11 11 Energy Gun 24 | . 28 22 21 Peak Build Rating 12 | 6 7 9 12 Average Rating 7 | 4 6 8 8 On Entrance 5 | . 6 7 9 Naked Turns . | . . . . Heaviest Build 31 | 14 15 30 31 Greatest Support 40 | 20 20 40 40 Greatest Overweight (x) 2 | . . . 2 Average Overweight (x) . | . . . . Largest Inventory Capacity 15 | 8 8 15 15 Average Capacity 10 | 6 8 8 15 Most Carried 9 | 2 6 5 9 Average Carried 4 | 1 3 4 6 Final Capacity 15 | 8 8 15 15 Final Carried 6 | 2 6 4 5 Class Distribution -------------------- 100% | Mutant Dominant Class ---------------- Mutant | -10/Materials Mutant | -9/Materials Mutant | -9/Storage Resources | -11 -10 -9 -9 ----------- Run | Yrd Mat Mat Sto Matter Collected 342 | 239 . 60 43 Remotely . | . . . . Salvage Created 328 | . . 60 268 Parts 15 | . . 6 9 Haulers Intercepted 1 | . . . 1 Recyclers Shooed . | . . . . Parts Field Recycled . | . . . . Retrieved Matter . | . . . . Parts Self-Destructed . | . . . . Prevented . | . . . . Kills | -11 -10 -9 -9 ------- Run | Yrd Mat Mat Sto Combat Hostiles Destroyed 6 | . . 1 5 Guns 5 | . . . 5 AOE 1 | . . 1 . Classes Destroyed 3 | . . 1 2 Hauler 1 | . . . 1 Grunt 4 | . . . 4 Sentry 2 | . . 1 1 Best Kill Streak 3 | . . 1 3 Combat Bots Only 3 | . . 1 3 Max Kills in Single Turn 1 | . . 1 1 Gunslinging . | . . . . Exploded 1 | . . 1 . Melee . | . . . . Uniques/NPCs Destroyed . | . . . . Combat | -11 -10 -9 -9 -------- Run | Yrd Mat Mat Sto Hostile Shots Fired 102 | . . 12 90 Missed 37 | . . 8 29 Damage Taken 881 | . . 62 819 Core 86 | . . . 86 Absorbed by Shields . | . . . . Core Remaining (%) 100 | 100 100 . . Volleys Fired 32 | . . 9 23 Largest 2 | . . 2 2 Hottest 106 | . . 90 106 Shots Fired 57 | . . 15 42 Gun 57 | . . 15 42 Cannon . | . . . . Launcher . | . . . . Special . | . . . . Kinetic . | . . . . Thermal 43 | . . 6 37 Explosive . | . . . . Electromagnetic 14 | . . 9 5 Robot Hit Streak 5 | . . 4 5 Robot Miss Streak 2 | . . 2 2 Penetration Max . | . . . . Secondary Targets . | . . . . Shots Hit Robots 38 | . . 11 27 Core Hits 14 | . . 2 12 Critical Kills . | . . . . Critical Parts Destroyed . | . . . . Critical Strikes 2 | . . . 2 Burn 2 | . . . 2 Melee Attacks . | . . . . Impact . | . . . . Slashing . | . . . . Piercing . | . . . . Sneak Attacks . | . . . . Combat Hostiles . | . . . . Follow-up Attacks . | . . . . Damage Inflicted 623 | . . 160 463 Guns 535 | . . 114 421 Cannons . | . . . . Explosions 88 | . . 46 42 Melee . | . . . . Ramming . | . . . . Kinetic . | . . . . Thermal 492 | . . 82 410 Explosive . | . . . . Electromagnetic 131 | . . 78 53 Impact . | . . . . Slashing . | . . . . Piercing . | . . . . Highest Corruption 6 | . . . 6 Average Corruption 6 | . . . 6 Corruption Purged . | . . . . Corruption Blocked . | . . . . Effects 2 | . . . 2 Matter Fused 1 | . . . 1 Parts Rejected 1 | . . . 1 Overload Shots . | . . . . Overflow Damage . | . . . . Projectiles . | . . . . Explosions . | . . . . Melee . | . . . . Knockbacks . | . . . . Impact . | . . . . Kinetic . | . . . . Secondary . | . . . . Self-Inflicted Damage . | . . . . Shots . | . . . . Rammed . | . . . . Targets Rammed . | . . . . Kicked . | . . . . Crushed . | . . . . Highest Temperature 518 | . . 135 518 Average Temperature 197 | . . 67 230 Received Heat Transfer 327 | . . 9 318 Effects 9 | . . . 9 Energy Bleed 1 | . . . 1 Interference 6 | . . . 6 Short Circuit 1 | . . . 1 Damage (minor) 1 | . . . 1 Siege Activations . | . . . . Robots Corrupted . | . . . . Combat Hostiles . | . . . . Parts Fried 1 | . . 1 . Impact Corruptions . | . . . . Robots Melted . | . . . . Combat Hostiles . | . . . . Parts Melted 2 | . . . 2 Heat Transferred 1297 | . . 161 1136 Parts Sabotaged . | . . . . Parts Stolen . | . . . . Parts Stripped . | . . . . Power Chain Reactions 2 | . . 1 1 Alert | -11 -10 -9 -9 ------- Run | Yrd Mat Mat Sto Peak Influence 144 | . . 35 144 Initial 14 | . . . 14 Average 30 | . . 8 78 Maximum Alert Level . | . . . . Low Security (%) 100 | 100 100 100 100 Level 1 . | . . . . Level 2 . | . . . . Level 3 . | . . . . Level 4 . | . . . . Level 5 . | . . . . High Security . | . . . . Max Security . | . . . . Squads Dispatched 1 | . . 1 . Investigation . | . . . . Extermination . | . . . . Reinforcement 1 | . . 1 . Assault . | . . . . Garrison . | . . . . Intercept . | . . . . Searches Triggered . | . . . . Construction Impeded . | . . . . Haulers Reinforced . | . . . . Active Scanning Responses . | . . . . Cargo Convoy Interrupts . | . . . . Stealth | -11 -10 -9 -9 --------- Run | Yrd Mat Mat Sto Distress Signals 3 | . . 2 1 Communications Jammed . | . . . . Distress Signals . | . . . . Times Spotted 11 | . . 3 8 Peak Tracking Total 6 | . . 4 6 Tactical Retreats . | . . . . Traps | -11 -10 -9 -9 ------- Run | Yrd Mat Mat Sto Traps Triggered . | . . . . Indirectly . | . . . . Trap Hack Attempts . | . . . . Triggered . | . . . . Disarmed . | . . . . Reprogrammed . | . . . . Reused . | . . . . Traps Extracted . | . . . . Installed . | . . . . Triggered . | . . . . Machines | -11 -10 -9 -9 ---------- Run | Yrd Mat Mat Sto Machines Disabled . | . . . . Max in Single Turn . | . . . . Machines Repaired . | . . . . Machines Dismantled . | . . . . Machines Sabotaged . | . . . . Overloaded Fab Kills . | . . . . Hacking | -11 -10 -9 -9 --------- Run | Yrd Mat Mat Sto Machines Accessed . | . . . . Terminals . | . . . . Fabricators . | . . . . Repair Stations . | . . . . Recycling Units . | . . . . Scanalyzers . | . . . . Garrison Access . | . . . . Total Hacks . | . . . . Successful . | . . . . Failed . | . . . . Catastrophic . | . . . . Database Lockouts . | . . . . Manual . | . . . . Terminals . | . . . . Fabricators . | . . . . Repair Stations . | . . . . Recycling Units . | . . . . Scanalyzers . | . . . . Garrison Access . | . . . . Terminal Hacks . | . . . . Fabricator Hacks . | . . . . Repair Station Hacks . | . . . . Recycling Unit Hacks . | . . . . Scanalyzer . | . . . . Garrison Access Hacks . | . . . . Unauthorized Hacks . | . . . . Terminals . | . . . . Fabricators . | . . . . Repair Stations . | . . . . Recycling Units . | . . . . Scanalyzers . | . . . . Garrison Access . | . . . . Data Cores Recovered . | . . . . Used . | . . . . Hacking Detections . | . . . . Full Trace Events . | . . . . Feedback Events . | . . . . Feedback Blocked . | . . . . Robot Schematics Acquired . | . . . . Robots Built . | . . . . Authchips . | . . . . Time . | . . . . Total Robot Build Rating . | . . . . Part Schematics Acquired . | . . . . Parts Built . | . . . . Authchips . | . . . . Time . | . . . . Total Part Build Rating . | . . . . Parts Repaired . | . . . . Time . | . . . . Parts Recycled . | . . . . Recycled Matter . | . . . . Retrieved Matter . | . . . . Retrieved Components . | . . . . Parts Scanalyzed . | . . . . Part Schematics Acquired . | . . . . Parts Damaged . | . . . . Bothacking | -11 -10 -9 -9 ------------ Run | Yrd Mat Mat Sto Used RIF Installer . | . . . . Robots Hacked . | . . . . Non-combat . | . . . . Combat . | . . . . Robot Hacks Applied . | . . . . Relay Couplers Released . | . . . . Fabnet Peak Effective % . | . . . . Robots Rewired . | . . . . Allies Hacked . | . . . . Hacks Repelled . | . . . . Allies | -11 -10 -9 -9 -------- Run | Yrd Mat Mat Sto Total Allies . | . . . . Largest Group . | . . . . Highest-Rated Group . | . . . . Highest-Rated Ally . | . . . . Total Orders . | . . . . Ally Attacks . | . . . . Total Damage . | . . . . Kills . | . . . . Allies Corrupted . | . . . . Allies Melted . | . . . . Intel | -11 -10 -9 -9 ------- Run | Yrd Mat Mat Sto Robot Analysis Total . | . . . . Derelict Logs Recovered . | . . . . Drone Launches . | . . . . Drone Recoveries . | . . . . Exploration | -11 -10 -9 -9 ------------- Run | Yrd Mat Mat Sto Turns Passed 630 | 58 233 104 235 Spaces Moved 385 | 44 190 37 114 Core 7 | 7 . . . Treads . | . . . . Legs 378 | 37 190 37 114 Wheels . | . . . . Hover . | . . . . Flight . | . . . . Fastest Speed 50 | 50 120 120 120 Average Speed 124 | 108 120 120 138 Slowest Speed 260 | 120 120 120 260 Overloaded Moves . | . . . . Propulsion Burnouts . | . . . . Robots Hopped . | . . . . Cave-ins Triggered . | . . . . Exploration Rate (%) 18 | 4 47 6 18 Regions Visited 3 Branch Regions 1 Pre-discovered Areas . | . . . . Known Exits Taken . | . . . . Unknown Exits Taken 3 | 1 1 1 . Scrap Searched . | . . . . Spaces Dug . | . . . . Terrain Destroyed 8 | . . 5 3 Melee . | . . . . Projectile . | . . . . AOE 8 | . . 5 3 Terrain Rammed . | . . . . Walls Destroyed . | . . . . Machines Disabled . | . . . . Actions | -11 -10 -9 -9 --------- Run | Yrd Mat Mat Sto Total 475 | 51 195 81 148 Wait 32 | . . 32 . Move 382 | 43 189 36 114 Hop . | . . . . Pick Up 12 | 2 5 . 5 Fast Attach 7 | 6 . 1 . Attach 7 | . 1 2 4 Detach . | . . . . Swap 2 | . . . 2 Drop 1 | . . 1 . Fire 32 | . . 9 23 Melee . | . . . . Ram . | . . . . Kick . | . . . . Crush . | . . . . Escape Stasis . | . . . . Rewire . | . . . . Trap . | . . . . Miscellaneous . | . . . . Route ------- -11/Scrapyard -10/Materials (discovered 2 exits: [*Mat] / [*Min]) -9/Materials -9/Storage History --------- Turn | Location | Event 2 | -11/Scrapyard | Met Revision 17 3 | -11/Scrapyard | Discovered new exit (range 15) 59 | -11/Scrapyard | Entered Materials 141 | -10/Materials | Discovered new exit (range 16) 285 | -10/Materials | Discovered new exit (range 7) 292 | -10/Materials | Entered another Materials area 292 | -9/Materials | Evolved 2 slots: Propulsion x2 314 | -9/Materials | Build established: Mutant 349 | -9/Materials | Discovered new exit (range 16) 396 | -9/Materials | Entered Storage 631 | -9/Storage | Self-destructed Last Messages --------------- 00586_ System corrupted: Matter fused (-5). 00586_ Acquired 3 matter. 00586_ K-01 Serf collects debris. 00589_ R-06 Scavenger collects Aluminum Leg. 00590_ K-01 Serf collects debris. 00592_ Overheating: System interference. 00592_ Sml. Laser temporarily disabled. 00592_ K-01 Serf collects debris. 00595_ U-05 Engineer lays Concrete. 00595_ M-13 Machinist repairs B-36 Bruiser. 00597_ K-01 Serf collects debris. 00597_ U-05 Engineer lays Concrete. 00598_ U-05 Engineer builds a Wall. 00598_ K-01 Serf collects debris. 00603_ U-05 Engineer lays Concrete. 00610_ Broken Aluminum Leg destroyed. 00611_ U-05 Engineer lays Concrete. 00612_ System corrupted: Aluminum Leg rejected. 00625_ Knocked back. 00628_ Med. Laser destroyed. Map ----- +----------------------------------------------------+ | ??????????????### ######???????????????????? | | ??????????????#T# #???????????????????? | | ??????????????? + #???????????????????? | | ????????????????# %% #???????????????????? | | ????????????????# ##??????????????????? | | ????##########??# ???????????????????? | | ????# #??# % ##???????????????????? | | ????# #??# ##???????????????????? | | ????# """" #??# "#???????????????????? | | ????# "??"" #??# "#???????????????????? | | ????# "???"" #### ##???????????????????? | | ????# ""???" + #????????????????????? | | ????# ""??" ######## #????????????????????? | | ????# """" #??????# #????????????????????? | | ????# #??????# #????????????????????? | | ???######/########### ###??????????????????? | | ???# ^ # "????????????????? | | ???# %/["????????????????? | | ???# #??????????????????? | | ???#######+############=#??????????????????? | | ?????????# ?????????# #??????????????????? | | ?????????# T#???????# #??????????????????? | | ?????????#"""##???????#g###########????????? | | ??????????????????????# #????????? | | ???????????????????#### b!!! """ #????????? | | ???????????????????#""" @!! """ #????????? | | ???????????????????#"R ! """ #????????? | | ???????????????????#""" #????????? | | ???????????????????#### #????????? | | ??????????????????????# #????????? | | ??????????????????????###"T"###;###????????? | | ????????????????????????##### ##""##???? | | ????????????????????????????# # T#???? | | ????????????????????????????# + ##???? | | ????????????????????????????# #####????? | | ????????????????????????????# #????????? | | ????????????????????????????## ##????????? | | ?????????????????????????????# #########?? | | ?????????????????????????????# # %# !!#?? | | ?????????????????????????????# # [" !!#?? | | ?????????????????????????????# + !#?? | | ?????????????????????????????# # " #?? | | ?????????????????????????????# ##T# !!#?? | | ?????????????????????????????# #### !!!#?? | | ?????????????????????????????# #??######?? | | ?????????????????????????????# #?????????? | | ?????????????????????????????#####?????????? | | ???????????????????????????????????????????? | | ???????????????????????????????????????????? | | ???????????????????????????????????????????? | +----------------------------------------------------+ Best States ------------- Heat Dissipation 28 Energy Generation 10 Energy Capacity 250 Matter Stores 300 Matter Capacity 300 Sight Range 16 Terrain Scan Density 10 Evasion (%) 55 Item Schematics ----------------- None Robot Schematics ------------------ None Fabricated ------------ Nothing Alien Tech Used ----------------- None Achievements -------------- None Challenges ------------ None Game ------ Seed GuidanceTransmissionStripper Manual? 0 Play Time 00:08:03 Cumulative 14.6 hours Start 2024.09.14 @ 22:27:28 End 2024.09.14 @ 22:33:10 Sessions 1 Manual Loads 0 Difficulty Rogue Special Mode None Game No. 59 Rogue 59 Adventurer 0 Explorer 0 Win Type - Total 0 Types 0/0/0/0/0/0/0/0/0 Lore% 9 Gallery% 19 Achievement% 15 Wizard Run 0 Options --------- Layout 2 ASCII 0 Keyboard 0 Movement Mouse Keybinds 0 Fullscreen 1 Font 16/Smallcaps Map View 55x47 Zoom Use 0% Tactical HUD 1 Map Filters NONE Filters NONE Steam 1 RUN: feb68add-4e03-4a07-be3f-d0a3b8534815